[Event "Titled Tuesday Blitz December 14 2021"]
[White "Ibrahimli, Murad"]
[Black "Papasimakopoulos, Alexandros"]
[WhiteFideId "13410229"]
[BlackFideId "4244125"]
[WhiteElo "2109"]
[BlackElo "2394"]
[Result "0-1"]
[Round "11"]
[TimeControl "180+1"]
[Date "2021.12.14"]
[WhiteClock "0:00:08"]
[BlackClock "0:00:16"]

1. e4 {[%clk 0:03:00]}  e6 {[%clk 0:02:59]} 2. d4 {[%clk 0:03:00]}  d5 {[%clk 0:03:00]} 3. e5 {[%clk 0:03:00]}  b6 {[%clk 0:02:59]} 4. Ne2 {[%clk 0:02:53]}  Ba6 {[%clk 0:02:59]} 5. h4 {[%clk 0:02:52]}  h5 {[%clk 0:02:58]} 6. g3 {[%clk 0:02:52]}  c5 {[%clk 0:02:56]} 7. c3 {[%clk 0:02:52]}  Qd7 {[%clk 0:02:53]} 8. Be3 {[%clk 0:02:47]}  Nh6 {[%clk 0:02:52]} 9. Bxh6 {[%clk 0:02:45]}  Rxh6 {[%clk 0:02:51]} 10. Nd2 {[%clk 0:02:46]}  Nc6 {[%clk 0:02:48]} 11. Nf3 {[%clk 0:02:44]}  Be7 {[%clk 0:02:44]} 12. Nf4 {[%clk 0:02:43]}  Bxf1 {[%clk 0:02:40]} 13. Kxf1 {[%clk 0:02:44]}  g6 {[%clk 0:02:39]} 14. Kg2 {[%clk 0:02:44]}  Rh8 {[%clk 0:02:37]} 15. a3 {[%clk 0:02:33]}  c4 {[%clk 0:02:32]} 16. Nh3 {[%clk 0:02:27]}  O-O-O {[%clk 0:02:28]} 17. Re1 {[%clk 0:02:27]}  Rdf8 {[%clk 0:02:22]} 18. Re3 {[%clk 0:02:26]}  Kb7 {[%clk 0:02:22]} 19. Nfg5 {[%clk 0:02:25]}  Bxg5 {[%clk 0:02:21]} 20. Nxg5 {[%clk 0:02:26]}  Ne7 {[%clk 0:02:22]} 21. a4 {[%clk 0:02:23]}  a6 {[%clk 0:02:20]} 22. Re1 {[%clk 0:02:21]}  Nf5 {[%clk 0:02:19]} 23. Qf3 {[%clk 0:02:20]}  Rc8 {[%clk 0:02:18]} 24. Reb1 {[%clk 0:02:20]}  Rc7 {[%clk 0:02:18]} 25. Qf4 {[%clk 0:02:00]}  Ka7 {[%clk 0:02:14]} 26. Nf3 {[%clk 0:02:00]}  Qe7 {[%clk 0:02:11]} 27. b3 {[%clk 0:01:56]}  cxb3 {[%clk 0:01:57]} 28. Rxb3 {[%clk 0:01:56]}  Rhc8 {[%clk 0:01:56]} 29. Rab1 {[%clk 0:01:55]}  Rb7 {[%clk 0:01:54]} 30. Nd2 {[%clk 0:01:47]}  Rc6 {[%clk 0:01:51]} 31. Qf3 {[%clk 0:01:45]}  Qc7 {[%clk 0:01:50]} 32. Qd3 {[%clk 0:01:44]}  Qd7 {[%clk 0:01:44]} 33. Kh2 {[%clk 0:01:41]}  Rc8 {[%clk 0:01:44]} 34. Ra3 {[%clk 0:01:33]}  g5 {[%clk 0:01:39]} 35. hxg5 {[%clk 0:01:32]}  Qe7 {[%clk 0:01:39]} 36. Ra2 {[%clk 0:00:55]}  Qxg5 {[%clk 0:01:39]} 37. Qf3 {[%clk 0:00:54]}  Rg8 {[%clk 0:01:26]} 38. Rg1 {[%clk 0:00:51]}  Rc7 {[%clk 0:01:23]} 39. Nb3 {[%clk 0:00:37]}  a5 {[%clk 0:01:09]} 40. Nc1 {[%clk 0:00:31]}  Rgc8 {[%clk 0:01:03]} 41. Ne2 {[%clk 0:00:31]}  Rh8 {[%clk 0:00:50]} 42. Ra3 {[%clk 0:00:28]}  Qd2 {[%clk 0:00:41]} 43. Rga1 {[%clk 0:00:27]}  Nh6 {[%clk 0:00:34]} 44. R3a2 {[%clk 0:00:26]}  Qg5 {[%clk 0:00:31]} 45. Qf4 {[%clk 0:00:20]}  Qg6 {[%clk 0:00:30]} 46. f3 {[%clk 0:00:16]}  Nf5 {[%clk 0:00:27]} 47. Rb2 {[%clk 0:00:15]}  Rc6 {[%clk 0:00:27]} 48. Rab1 {[%clk 0:00:15]}  Rg8 {[%clk 0:00:24]} 49. Kh3 {[%clk 0:00:15]}  Rg7 {[%clk 0:00:21]} 50. Rg1 {[%clk 0:00:15]}  Rg8 {[%clk 0:00:21]} 51. Qd2 {[%clk 0:00:12]}  f6 {[%clk 0:00:19]} 52. Nf4 {[%clk 0:00:12]}  Qf7 {[%clk 0:00:19]} 53. exf6 {[%clk 0:00:11]}  Qxf6 {[%clk 0:00:20]} 54. Nd3 {[%clk 0:00:12]}  Rxg3+ {[%clk 0:00:17]} 55. Rxg3 {[%clk 0:00:12]}  Qh4+ {[%clk 0:00:18]} 56. Kg2 {[%clk 0:00:11]}  Qxg3+ {[%clk 0:00:18]} 57. Kf1 {[%clk 0:00:11]}  Qxf3+ {[%clk 0:00:19]} 58. Ke1 {[%clk 0:00:12]}  Qh1+ {[%clk 0:00:19]} 59. Ke2 {[%clk 0:00:12]}  Rc8 {[%clk 0:00:17]} 60. Qf4 {[%clk 0:00:08]}  Qg2+ {[%clk 0:00:15]} 61. Kd1 {[%clk 0:00:08]}  Qe4 {[%clk 0:00:14]} 62. Qxe4 {[%clk 0:00:06]}  dxe4 {[%clk 0:00:15]} 63. Ne5 {[%clk 0:00:07]}  Rxc3 {[%clk 0:00:15]} 64. Rg2 {[%clk 0:00:07]}  Ne3+ {[%clk 0:00:15]} 65. Kd2 {[%clk 0:00:07]}  Nxg2 {[%clk 0:00:15]} 66. Kxc3 {[%clk 0:00:08]}  h4 {[%clk 0:00:16]} 67. Ng4 {[%clk 0:00:08]}  h3 {[%clk 0:00:15]} 68. Kd2 {[%clk 0:00:08]}  b5 {[%clk 0:00:16]} 69. axb5 {[%clk 0:00:08]}  a4 {[%clk 0:00:16]} 0-1


[Site "https://www.chess.com"]

[Event "Titled Tuesday Blitz December 14 2021"]
[White "Leitao, Rafael"]
[Black "Moroni, Luca Jr"]
[WhiteFideId "2101246"]
[BlackFideId "865834"]
[WhiteElo "2609"]
[BlackElo "2491"]
[Result "1-0"]
[Round "11"]
[TimeControl "180+1"]
[Date "2021.12.14"]
[WhiteClock "0:00:06"]
[BlackClock "0:00:03"]

1. c4 {[%clk 0:03:00]}  g6 {[%clk 0:02:58]} 2. Nc3 {[%clk 0:02:57]}  Bg7 {[%clk 0:02:59]} 3. g3 {[%clk 0:02:57]}  d6 {[%clk 0:02:59]} 4. Bg2 {[%clk 0:02:56]}  Nc6 {[%clk 0:02:59]} 5. Nf3 {[%clk 0:02:54]}  Bd7 {[%clk 0:02:59]} 6. d4 {[%clk 0:02:54]}  Qc8 {[%clk 0:02:59]} 7. O-O {[%clk 0:02:51]}  Bh3 {[%clk 0:02:58]} 8. d5 {[%clk 0:02:52]}  Ne5 {[%clk 0:02:58]} 9. Nxe5 {[%clk 0:02:51]}  Bxe5 {[%clk 0:02:59]} 10. f4 {[%clk 0:02:29]}  Bxc3 {[%clk 0:02:57]} 11. bxc3 {[%clk 0:02:29]}  h5 {[%clk 0:02:58]} 12. e4 {[%clk 0:02:25]}  h4 {[%clk 0:02:57]} 13. f5 {[%clk 0:02:13]}  Bxg2 {[%clk 0:02:57]} 14. Kxg2 {[%clk 0:02:13]}  hxg3 {[%clk 0:02:57]} 15. hxg3 {[%clk 0:02:13]}  Nf6 {[%clk 0:02:57]} 16. Rh1 {[%clk 0:01:54]}  Rxh1 {[%clk 0:02:56]} 17. Qxh1 {[%clk 0:01:53]}  Nxe4 {[%clk 0:02:55]} 18. fxg6 {[%clk 0:01:37]}  Qg4 {[%clk 0:02:45]} 19. gxf7+ {[%clk 0:01:21]}  Kxf7 {[%clk 0:02:45]} 20. Qh7+ {[%clk 0:01:21]}  Ke8 {[%clk 0:02:45]} 21. Bf4 {[%clk 0:01:01]}  Qe2+ {[%clk 0:02:44]} 22. Kg1 {[%clk 0:00:57]}  Qf2+ {[%clk 0:02:18]} 23. Kh1 {[%clk 0:00:55]}  Qf3+ {[%clk 0:02:16]} 24. Kg1 {[%clk 0:00:54]}  Qf2+ {[%clk 0:01:50]} 25. Kh1 {[%clk 0:00:54]}  Nxg3+ {[%clk 0:01:50]} 26. Bxg3 {[%clk 0:00:52]}  Qxg3 {[%clk 0:01:51]} 27. Qh8+ {[%clk 0:00:49]}  Kd7 {[%clk 0:01:51]} 28. Qxa8 {[%clk 0:00:47]}  Qh3+ {[%clk 0:01:50]} 29. Kg1 {[%clk 0:00:47]}  Qg3+ {[%clk 0:01:51]} 30. Kh1 {[%clk 0:00:47]}  Qf3+ {[%clk 0:01:49]} 31. Kg1 {[%clk 0:00:46]}  Qg4+ {[%clk 0:01:49]} 32. Kh1 {[%clk 0:00:45]}  Qh3+ {[%clk 0:01:42]} 33. Kg1 {[%clk 0:00:45]}  Qxc3 {[%clk 0:01:42]} 34. Rf1 {[%clk 0:00:41]}  Qg3+ {[%clk 0:01:37]} 35. Kh1 {[%clk 0:00:41]}  Qh4+ {[%clk 0:01:37]} 36. Kg1 {[%clk 0:00:41]}  Qd4+ {[%clk 0:01:37]} 37. Rf2 {[%clk 0:00:37]}  Qd1+ {[%clk 0:01:35]} 38. Kg2 {[%clk 0:00:36]}  Qg4+ {[%clk 0:01:34]} 39. Kf1 {[%clk 0:00:37]}  Qxc4+ {[%clk 0:01:34]} 40. Kg1 {[%clk 0:00:37]}  Qc1+ {[%clk 0:01:33]} 41. Kg2 {[%clk 0:00:36]}  Qg5+ {[%clk 0:01:33]} 42. Kf1 {[%clk 0:00:36]}  Qxd5 {[%clk 0:01:31]} 43. Qxa7 {[%clk 0:00:36]}  Qd1+ {[%clk 0:01:31]} 44. Kg2 {[%clk 0:00:36]}  Qg4+ {[%clk 0:01:31]} 45. Kf1 {[%clk 0:00:36]}  Qc4+ {[%clk 0:01:31]} 46. Kg1 {[%clk 0:00:36]}  Qg4+ {[%clk 0:01:21]} 47. Kf1 {[%clk 0:00:35]}  b5 {[%clk 0:01:19]} 48. Qe3 {[%clk 0:00:34]}  Qc4+ {[%clk 0:01:17]} 49. Re2 {[%clk 0:00:34]}  e5 {[%clk 0:01:15]} 50. Qe4 {[%clk 0:00:33]}  Qc1+ {[%clk 0:01:14]} 51. Re1 {[%clk 0:00:32]}  Qd2 {[%clk 0:00:57]} 52. Re2 {[%clk 0:00:31]}  Qc1+ {[%clk 0:00:54]} 53. Kf2 {[%clk 0:00:31]}  Qc5+ {[%clk 0:00:50]} 54. Kg2 {[%clk 0:00:30]}  Qc1 {[%clk 0:00:41]} 55. Qf5+ {[%clk 0:00:28]}  Kd8 {[%clk 0:00:38]} 56. Qf8+ {[%clk 0:00:21]}  Kd7 {[%clk 0:00:38]} 57. Qf5+ {[%clk 0:00:21]}  Kd8 {[%clk 0:00:38]} 58. Rc2 {[%clk 0:00:20]}  Qh6 {[%clk 0:00:34]} 59. Qf7 {[%clk 0:00:19]}  Qg5+ {[%clk 0:00:30]} 60. Kf1 {[%clk 0:00:17]}  c5 {[%clk 0:00:24]} 61. Qh7 {[%clk 0:00:15]}  c4 {[%clk 0:00:15]} 62. Rg2 {[%clk 0:00:13]}  Qc1+ {[%clk 0:00:15]} 63. Kf2 {[%clk 0:00:13]}  Qf4+ {[%clk 0:00:15]} 64. Kg1 {[%clk 0:00:14]}  Qe3+ {[%clk 0:00:15]} 65. Kh1 {[%clk 0:00:13]}  Qf3 {[%clk 0:00:10]} 66. Kh2 {[%clk 0:00:10]}  Qf4+ {[%clk 0:00:10]} 67. Kg1 {[%clk 0:00:08]}  Qc1+ {[%clk 0:00:09]} 68. Kh2 {[%clk 0:00:08]}  Qf4+ {[%clk 0:00:10]} 69. Kh1 {[%clk 0:00:08]}  Qf3 {[%clk 0:00:10]} 70. Kg1 {[%clk 0:00:04]}  Qe3+ {[%clk 0:00:09]} 71. Kf1 {[%clk 0:00:04]}  Qc1+ {[%clk 0:00:07]} 72. Kf2 {[%clk 0:00:04]}  Qf4+ {[%clk 0:00:05]} 73. Ke2 {[%clk 0:00:03]}  Qf8 {[%clk 0:00:01]} 74. Rg8 {[%clk 0:00:04]}  Qxg8 {[%clk 0:00:01]} 75. Qxg8+ {[%clk 0:00:04]}  Kc7 {[%clk 0:00:02]} 76. Qd5 {[%clk 0:00:05]}  Kb6 {[%clk 0:00:02]} 77. Kd2 {[%clk 0:00:05]}  Ka5 {[%clk 0:00:03]} 78. Qxd6 {[%clk 0:00:06]}  Ka4 {[%clk 0:00:03]} 79. Kc3 {[%clk 0:00:06]}  e4 {[%clk 0:00:03]} 80. Qb4# {[%clk 0:00:06]} 1-0


[Site "https://www.chess.com"]

[Event "Titled Tuesday Blitz December 14 2021"]
[White "Maly, Alexey"]
[Black "Tsydypov, Zhamsaran"]
[WhiteFideId "14103184"]
[BlackFideId "4108566"]
[WhiteElo "2294"]
[BlackElo "2614"]
[Result "1/2-1/2"]
[Round "11"]
[TimeControl "180+1"]
[Date "2021.12.14"]
[WhiteClock "0:00:08"]
[BlackClock "0:00:17"]

1. d4 {[%clk 0:03:00]}  Nf6 {[%clk 0:02:59]} 2. c4 {[%clk 0:03:01]}  g6 {[%clk 0:02:59]} 3. Nc3 {[%clk 0:03:00]}  Bg7 {[%clk 0:02:59]} 4. e4 {[%clk 0:03:00]}  d6 {[%clk 0:02:59]} 5. Be2 {[%clk 0:03:00]}  O-O {[%clk 0:03:00]} 6. Nf3 {[%clk 0:03:00]}  Bg4 {[%clk 0:03:00]} 7. Ng1 {[%clk 0:03:00]}  Bd7 {[%clk 0:02:57]} 8. Nf3 {[%clk 0:03:00]}  Nc6 {[%clk 0:02:51]} 9. O-O {[%clk 0:02:59]}  e5 {[%clk 0:02:51]} 10. d5 {[%clk 0:02:59]}  Ne7 {[%clk 0:02:49]} 11. Ne1 {[%clk 0:02:59]}  Ne8 {[%clk 0:02:46]} 12. Be3 {[%clk 0:03:00]}  f5 {[%clk 0:02:46]} 13. f3 {[%clk 0:03:00]}  f4 {[%clk 0:02:46]} 14. Bf2 {[%clk 0:03:01]}  g5 {[%clk 0:02:47]} 15. c5 {[%clk 0:03:01]}  h5 {[%clk 0:02:44]} 16. a4 {[%clk 0:02:59]}  Rf6 {[%clk 0:02:43]} 17. a5 {[%clk 0:02:58]}  Rg6 {[%clk 0:02:43]} 18. h3 {[%clk 0:02:57]}  g4 {[%clk 0:02:41]} 19. fxg4 {[%clk 0:02:54]}  hxg4 {[%clk 0:02:41]} 20. Bxg4 {[%clk 0:02:52]}  Bxg4 {[%clk 0:02:40]} 21. hxg4 {[%clk 0:02:53]}  Nf6 {[%clk 0:02:40]} 22. cxd6 {[%clk 0:02:47]}  cxd6 {[%clk 0:02:40]} 23. Bh4 {[%clk 0:02:40]}  Nxg4 {[%clk 0:02:39]} 24. Rf3 {[%clk 0:02:34]}  Qc7 {[%clk 0:02:29]} 25. Nd3 {[%clk 0:02:26]}  Ne3 {[%clk 0:02:29]} 26. Rxe3 {[%clk 0:02:20]}  fxe3 {[%clk 0:02:29]} 27. Qe2 {[%clk 0:02:12]}  Bh6 {[%clk 0:02:26]} 28. a6 {[%clk 0:01:36]}  bxa6 {[%clk 0:02:23]} 29. Rxa6 {[%clk 0:01:34]}  Qd7 {[%clk 0:02:21]} 30. Qh5 {[%clk 0:01:13]}  Kh7 {[%clk 0:02:05]} 31. Nxe5 {[%clk 0:00:56]}  dxe5 {[%clk 0:02:02]} 32. Re6 {[%clk 0:00:56]}  Re8 {[%clk 0:01:01]} 33. Bg5 {[%clk 0:00:53]}  Rxe6 {[%clk 0:00:55]} 34. Qf7+ {[%clk 0:00:50]}  Bg7 {[%clk 0:00:26]} 35. dxe6 {[%clk 0:00:50]}  Qd8 {[%clk 0:00:17]} 36. Qh5+ {[%clk 0:00:43]}  Kg8 {[%clk 0:00:17]} 37. Qf7+ {[%clk 0:00:41]}  Kh8 {[%clk 0:00:17]} 38. Qh5+ {[%clk 0:00:14]}  Kg8 {[%clk 0:00:17]} 39. Qf7+ {[%clk 0:00:14]}  Kh8 {[%clk 0:00:17]} 40. Qh5+ {[%clk 0:00:08]}  Kg8 {[%clk 0:00:17]} 1/2-1/2


[Site "https://www.chess.com"]

[Event "Titled Tuesday Blitz December 14 2021"]
[White "Martinez Alcantara, Jose Eduardo"]
[Black "Nakamura, Hikaru"]
[WhiteFideId "3805662"]
[BlackFideId "2016192"]
[WhiteElo "2690"]
[BlackElo "2884"]
[Result "1-0"]
[Round "11"]
[TimeControl "180+1"]
[Date "2021.12.14"]
[WhiteClock "0:00:14"]
[BlackClock "0:00:15"]

1. e4 {[%clk 0:03:00]}  c5 {[%clk 0:02:54]} 2. Nf3 {[%clk 0:03:00]}  d6 {[%clk 0:02:54]} 3. c3 {[%clk 0:03:01]}  Nf6 {[%clk 0:02:52]} 4. h3 {[%clk 0:03:01]}  Nc6 {[%clk 0:02:50]} 5. Bd3 {[%clk 0:03:01]}  d5 {[%clk 0:02:51]} 6. e5 {[%clk 0:03:00]}  Ne4 {[%clk 0:02:36]} 7. Bb5 {[%clk 0:02:52]}  c4 {[%clk 0:02:35]} 8. d4 {[%clk 0:02:29]}  cxd3 {[%clk 0:02:33]} 9. O-O {[%clk 0:02:27]}  a6 {[%clk 0:02:12]} 10. Bxd3 {[%clk 0:02:27]}  Bf5 {[%clk 0:02:12]} 11. Qe2 {[%clk 0:02:06]}  e6 {[%clk 0:02:09]} 12. Nbd2 {[%clk 0:02:00]}  Nxd2 {[%clk 0:02:07]} 13. Bxd2 {[%clk 0:02:01]}  Bxd3 {[%clk 0:02:06]} 14. Qxd3 {[%clk 0:02:02]}  Bc5 {[%clk 0:02:04]} 15. b4 {[%clk 0:01:53]}  Ba7 {[%clk 0:02:04]} 16. a3 {[%clk 0:01:46]}  Rc8 {[%clk 0:02:03]} 17. Rac1 {[%clk 0:01:46]}  Ne7 {[%clk 0:02:01]} 18. Be3 {[%clk 0:01:35]}  Bxe3 {[%clk 0:02:00]} 19. Qxe3 {[%clk 0:01:36]}  O-O {[%clk 0:01:58]} 20. Rfd1 {[%clk 0:01:29]}  Qc7 {[%clk 0:01:51]} 21. h4 {[%clk 0:01:26]}  Nf5 {[%clk 0:01:48]} 22. Qf4 {[%clk 0:01:14]}  Qe7 {[%clk 0:01:48]} 23. c4 {[%clk 0:01:07]}  dxc4 {[%clk 0:01:41]} 24. Rxc4 {[%clk 0:01:08]}  b5 {[%clk 0:01:40]} 25. Re4 {[%clk 0:01:05]}  Rc3 {[%clk 0:01:36]} 26. Nd4 {[%clk 0:00:57]}  Nxd4 {[%clk 0:01:07]} 27. Rexd4 {[%clk 0:00:58]}  Rxa3 {[%clk 0:01:07]} 28. Rd7 {[%clk 0:00:57]}  Qe8 {[%clk 0:01:08]} 29. Rc7 {[%clk 0:00:48]}  h6 {[%clk 0:00:28]} 30. Rdd7 {[%clk 0:00:42]}  Ra1+ {[%clk 0:00:29]} 31. Kh2 {[%clk 0:00:42]}  Re1 {[%clk 0:00:29]} 32. Re7 {[%clk 0:00:38]}  Qb8 {[%clk 0:00:30]} 33. h5 {[%clk 0:00:25]}  Kh8 {[%clk 0:00:25]} 34. Rb7 {[%clk 0:00:20]}  Qc8 {[%clk 0:00:24]} 35. Rbc7 {[%clk 0:00:20]}  Qb8 {[%clk 0:00:20]} 36. Rxf7 {[%clk 0:00:20]}  Qxc7 {[%clk 0:00:19]} 37. Rxf8+ {[%clk 0:00:20]}  Kh7 {[%clk 0:00:19]} 38. Qg4 {[%clk 0:00:13]}  Qxe5+ {[%clk 0:00:18]} 39. f4 {[%clk 0:00:14]}  Qe4 {[%clk 0:00:15]} 40. Rf7 {[%clk 0:00:14]} 1-0


[Site "https://www.chess.com"]

[Event "Titled Tuesday Blitz December 14 2021"]
[White "Nesterov, Arseniy"]
[Black "Kosteniuk, Alexandra"]
[WhiteFideId "24198455"]
[BlackFideId "4128125"]
[WhiteElo "2489"]
[BlackElo "2475"]
[Result "1-0"]
[Round "11"]
[TimeControl "180+1"]
[Date "2021.12.14"]
[WhiteClock "0:00:04"]
[BlackClock "0:00:05"]

1. d4 {[%clk 0:03:00]}  Nf6 {[%clk 0:03:00]} 2. c4 {[%clk 0:03:01]}  e6 {[%clk 0:03:00]} 3. Nf3 {[%clk 0:03:00]}  b6 {[%clk 0:03:00]} 4. a3 {[%clk 0:02:57]}  Bb7 {[%clk 0:02:59]} 5. Nc3 {[%clk 0:02:58]}  d5 {[%clk 0:03:00]} 6. cxd5 {[%clk 0:02:58]}  Nxd5 {[%clk 0:03:00]} 7. Qc2 {[%clk 0:02:58]}  Be7 {[%clk 0:02:59]} 8. e4 {[%clk 0:02:58]}  Nxc3 {[%clk 0:02:59]} 9. bxc3 {[%clk 0:02:59]}  O-O {[%clk 0:02:58]} 10. Bd3 {[%clk 0:03:00]}  c5 {[%clk 0:02:58]} 11. O-O {[%clk 0:03:00]}  Nc6 {[%clk 0:02:58]} 12. d5 {[%clk 0:02:51]}  Na5 {[%clk 0:02:46]} 13. c4 {[%clk 0:02:49]}  b5 {[%clk 0:02:46]} 14. cxb5 {[%clk 0:02:09]}  c4 {[%clk 0:02:40]} 15. Be2 {[%clk 0:02:10]}  exd5 {[%clk 0:02:40]} 16. Rd1 {[%clk 0:02:10]}  Qb6 {[%clk 0:02:32]} 17. exd5 {[%clk 0:01:58]}  Bc5 {[%clk 0:02:10]} 18. Ng5 {[%clk 0:01:38]}  Bxf2+ {[%clk 0:02:06]} 19. Kh1 {[%clk 0:01:37]}  f5 {[%clk 0:01:40]} 20. Ne6 {[%clk 0:01:17]}  Rf7 {[%clk 0:01:35]} 21. Bf3 {[%clk 0:01:06]}  Bh4 {[%clk 0:01:18]} 22. Bb2 {[%clk 0:00:57]}  Rc8 {[%clk 0:01:14]} 23. Bd4 {[%clk 0:00:32]}  Qd6 {[%clk 0:01:08]} 24. Qc3 {[%clk 0:00:29]}  Nb3 {[%clk 0:01:06]} 25. Be5 {[%clk 0:00:23]}  Qd7 {[%clk 0:00:59]} 26. Rab1 {[%clk 0:00:20]}  Bf6 {[%clk 0:00:53]} 27. a4 {[%clk 0:00:16]}  Qd6 {[%clk 0:00:44]} 28. Bxf6 {[%clk 0:00:11]}  Rxf6 {[%clk 0:00:43]} 29. Nd4 {[%clk 0:00:10]}  Rh6 {[%clk 0:00:26]} 30. h3 {[%clk 0:00:10]}  Qe5 {[%clk 0:00:25]} 31. d6 {[%clk 0:00:06]}  Bxf3 {[%clk 0:00:22]} 32. Qxf3 {[%clk 0:00:05]}  Nxd4 {[%clk 0:00:20]} 33. Qb7 {[%clk 0:00:05]}  Rd8 {[%clk 0:00:19]} 34. d7 {[%clk 0:00:03]}  Ne2 {[%clk 0:00:17]} 35. Re1 {[%clk 0:00:03]}  Re6 {[%clk 0:00:10]} 36. Qc8 {[%clk 0:00:02]}  Qf6 {[%clk 0:00:11]} 37. Qxc4 {[%clk 0:00:02]}  Rxd7 {[%clk 0:00:07]} 38. Rxe2 {[%clk 0:00:03]}  Kf7 {[%clk 0:00:06]} 39. Rbe1 {[%clk 0:00:03]}  Re7 {[%clk 0:00:06]} 40. a5 {[%clk 0:00:03]}  f4 {[%clk 0:00:05]} 41. b6 {[%clk 0:00:04]}  axb6 {[%clk 0:00:05]} 42. axb6 {[%clk 0:00:04]}  f3 {[%clk 0:00:06]} 43. Rxe6 {[%clk 0:00:05]}  fxg2+ {[%clk 0:00:06]} 44. Kxg2 {[%clk 0:00:05]}  Qg5+ {[%clk 0:00:06]} 45. Qg4 {[%clk 0:00:05]}  Qd5+ {[%clk 0:00:06]} 46. R6e4 {[%clk 0:00:04]}  Qd2+ {[%clk 0:00:05]} 47. R1e2 {[%clk 0:00:04]} 1-0


[Site "https://www.chess.com"]

[Event "Titled Tuesday Blitz December 14 2021"]
[White "Pichot, Alan"]
[Black "Rakhmanov, Aleksandr"]
[WhiteFideId "110973"]
[BlackFideId "4173708"]
[WhiteElo "2629"]
[BlackElo "2500"]
[Result "0-1"]
[Round "11"]
[TimeControl "180+1"]
[Date "2021.12.14"]
[WhiteClock "0:00:05"]
[BlackClock "0:00:06"]

1. e4 {[%clk 0:03:00]}  c5 {[%clk 0:02:52]} 2. Nf3 {[%clk 0:03:00]}  Nf6 {[%clk 0:02:51]} 3. e5 {[%clk 0:03:00]}  Nd5 {[%clk 0:02:51]} 4. Nc3 {[%clk 0:03:01]}  Nxc3 {[%clk 0:02:50]} 5. dxc3 {[%clk 0:03:01]}  Nc6 {[%clk 0:02:51]} 6. Bf4 {[%clk 0:03:02]}  Qb6 {[%clk 0:02:52]} 7. Qc1 {[%clk 0:03:01]}  e6 {[%clk 0:02:51]} 8. Bd3 {[%clk 0:03:01]}  h6 {[%clk 0:02:51]} 9. h4 {[%clk 0:02:59]}  Be7 {[%clk 0:02:50]} 10. h5 {[%clk 0:02:59]}  Bf8 {[%clk 0:02:50]} 11. O-O {[%clk 0:02:54]}  Qc7 {[%clk 0:02:50]} 12. Re1 {[%clk 0:02:53]}  b6 {[%clk 0:02:51]} 13. Qd2 {[%clk 0:02:50]}  Bb7 {[%clk 0:02:51]} 14. Rad1 {[%clk 0:02:51]}  O-O-O {[%clk 0:02:52]} 15. Be4 {[%clk 0:02:51]}  Be7 {[%clk 0:02:52]} 16. a3 {[%clk 0:02:47]}  Rdg8 {[%clk 0:02:49]} 17. Bg3 {[%clk 0:02:32]}  g6 {[%clk 0:02:48]} 18. Qf4 {[%clk 0:02:07]}  gxh5 {[%clk 0:02:30]} 19. Qxf7 {[%clk 0:02:07]}  h4 {[%clk 0:02:29]} 20. Nxh4 {[%clk 0:01:49]}  Bxh4 {[%clk 0:02:23]} 21. Bxh4 {[%clk 0:01:49]}  Nxe5 {[%clk 0:02:21]} 22. Qf4 {[%clk 0:01:44]}  d5 {[%clk 0:01:06]} 23. Bd3 {[%clk 0:01:23]}  Nxd3 {[%clk 0:00:51]} 24. Qxc7+ {[%clk 0:01:23]}  Kxc7 {[%clk 0:00:52]} 25. Rxd3 {[%clk 0:01:23]}  Rg6 {[%clk 0:00:49]} 26. Rde3 {[%clk 0:01:09]}  Kd7 {[%clk 0:00:46]} 27. Rf3 {[%clk 0:01:09]}  Rh7 {[%clk 0:00:37]} 28. Rf8 {[%clk 0:01:09]}  d4 {[%clk 0:00:32]} 29. Bg3 {[%clk 0:01:08]}  h5 {[%clk 0:00:31]} 30. Rf4 {[%clk 0:00:33]}  h4 {[%clk 0:00:16]} 31. Rxh4 {[%clk 0:00:31]}  Rxh4 {[%clk 0:00:16]} 32. Bxh4 {[%clk 0:00:32]}  Rxg2+ {[%clk 0:00:16]} 33. Kf1 {[%clk 0:00:33]}  Rh2 {[%clk 0:00:15]} 34. Bg3 {[%clk 0:00:33]}  Rh1+ {[%clk 0:00:15]} 35. Ke2 {[%clk 0:00:34]}  Ba6+ {[%clk 0:00:13]} 36. Kd2 {[%clk 0:00:34]}  dxc3+ {[%clk 0:00:13]} 37. bxc3 {[%clk 0:00:35]}  Rh7 {[%clk 0:00:13]} 38. Re4 {[%clk 0:00:33]}  Rf7 {[%clk 0:00:10]} 39. Ra4 {[%clk 0:00:32]}  Kc6 {[%clk 0:00:06]} 40. Re4 {[%clk 0:00:24]}  Rd7+ {[%clk 0:00:04]} 41. Kc1 {[%clk 0:00:24]}  Re7 {[%clk 0:00:05]} 42. Bh4 {[%clk 0:00:19]}  Re8 {[%clk 0:00:05]} 43. Bg3 {[%clk 0:00:19]}  Bc8 {[%clk 0:00:04]} 44. Ra4 {[%clk 0:00:18]}  a5 {[%clk 0:00:03]} 45. Rh4 {[%clk 0:00:19]}  Rf8 {[%clk 0:00:03]} 46. Rh7 {[%clk 0:00:19]}  Bd7 {[%clk 0:00:04]} 47. Kd2 {[%clk 0:00:19]}  Rf5 {[%clk 0:00:03]} 48. Ke3 {[%clk 0:00:19]}  Rd5 {[%clk 0:00:03]} 49. Rh8 {[%clk 0:00:16]}  Rd1 {[%clk 0:00:04]} 50. Rb8 {[%clk 0:00:16]}  Ra1 {[%clk 0:00:04]} 51. Bh4 {[%clk 0:00:15]}  Rxa3 {[%clk 0:00:03]} 52. Kd2 {[%clk 0:00:15]}  b5 {[%clk 0:00:03]} 53. Bd8 {[%clk 0:00:15]}  c4 {[%clk 0:00:03]} 54. Rb6+ {[%clk 0:00:13]}  Kc5 {[%clk 0:00:03]} 55. Rb7 {[%clk 0:00:14]}  Kc6 {[%clk 0:00:04]} 56. Rb6+ {[%clk 0:00:11]}  Kc5 {[%clk 0:00:04]} 57. Ra6 {[%clk 0:00:11]}  b4 {[%clk 0:00:04]} 58. Be7+ {[%clk 0:00:05]}  Kb5 {[%clk 0:00:04]} 59. Ra7 {[%clk 0:00:06]}  bxc3+ {[%clk 0:00:04]} 60. Ke3 {[%clk 0:00:05]}  Ra2 {[%clk 0:00:04]} 61. Rxd7 {[%clk 0:00:05]}  Rxc2 {[%clk 0:00:05]} 62. Rb7+ {[%clk 0:00:05]}  Ka4 {[%clk 0:00:05]} 63. Bf6 {[%clk 0:00:05]}  Rc1 {[%clk 0:00:05]} 64. Kd4 {[%clk 0:00:05]}  Rf1 {[%clk 0:00:03]} 65. Kxc4 {[%clk 0:00:04]}  c2 {[%clk 0:00:03]} 66. Bg5 {[%clk 0:00:02]}  c1=Q+ {[%clk 0:00:03]} 67. Bxc1 {[%clk 0:00:03]}  Rxc1+ {[%clk 0:00:03]} 68. Kd4 {[%clk 0:00:03]}  Rf1 {[%clk 0:00:04]} 69. Ke3 {[%clk 0:00:04]}  Re1+ {[%clk 0:00:03]} 70. Kf4 {[%clk 0:00:04]}  Ka3 {[%clk 0:00:04]} 71. Rb6 {[%clk 0:00:02]}  a4 {[%clk 0:00:04]} 72. f3 {[%clk 0:00:03]}  Ka2 {[%clk 0:00:05]} 73. Kg5 {[%clk 0:00:03]}  a3 {[%clk 0:00:05]} 74. f4 {[%clk 0:00:03]}  Ka1 {[%clk 0:00:03]} 75. Rb4 {[%clk 0:00:04]}  a2 {[%clk 0:00:04]} 76. Kf6 {[%clk 0:00:04]}  Re2 {[%clk 0:00:04]} 77. Rb6 {[%clk 0:00:04]}  Re3 {[%clk 0:00:03]} 78. Kg5 {[%clk 0:00:03]}  Re4 {[%clk 0:00:02]} 79. Rb5 {[%clk 0:00:02]}  Re1 {[%clk 0:00:03]} 80. Rb6 {[%clk 0:00:03]}  Re2 {[%clk 0:00:03]} 81. Kf6 {[%clk 0:00:03]}  Re4 {[%clk 0:00:04]} 82. Kg5 {[%clk 0:00:03]}  Re3 {[%clk 0:00:04]} 83. Kf6 {[%clk 0:00:04]}  Re1 {[%clk 0:00:04]} 84. Kg5 {[%clk 0:00:04]}  e5 {[%clk 0:00:05]} 85. f5 {[%clk 0:00:04]}  Rg1+ {[%clk 0:00:05]} 86. Kf6 {[%clk 0:00:04]}  e4 {[%clk 0:00:06]} 87. Re6 {[%clk 0:00:04]}  Kb2 {[%clk 0:00:06]} 88. Rb6+ {[%clk 0:00:04]}  Kc3 {[%clk 0:00:06]} 89. Rc6+ {[%clk 0:00:04]}  Kd4 {[%clk 0:00:06]} 90. Rd6+ {[%clk 0:00:05]} 0-1


[Site "https://www.chess.com"]